{"text_format":"1","workbook":"xlsx","n_sheets":1,"sheets":["Pressupost Projecte Ba"],"not_rendered":{"charts":0,"images":2,"macros":1,"external_links":0,"defined_names":6,"comments":1,"pivot_tables":0},"unopened":[],"bounds":{"document_bytes":16777216,"sheet_cells":100000,"rows_first":2000,"rows_last":500,"rows_between":2000,"halvings":0,"cell_chars":16384,"cell_head_chars":4096},"cells_cut":0,"cells_raw":0,"read":"whole","date_system":"1900"}

{"sheet":"Pressupost Projecte Ba","index":0,"n_rows":159,"n_cols":6,"rows_kept":159,"cut":false,"hidden":false,"merged":[[2,1,3,5],[138,2,138,3]]}
[null,null,null,null,null,"Document bàsic 3"]
[null,null,null,null,null,"Àmbit temàtic \"B\": Intercooperació"]
["Subvencions de l'Ajuntament de Barcelona per a","Modalitat \"a\": Intercooperació de 2n i major nivell: Projectes promoguts per entitats de l'Economia Social i Solidària o de les finances ètiques de segon nivell i superior, que contribueixin al desplegament de l’Estratègia BCN 2030 d’ESS  de Barcelona, i tinguin per destinatàries a les seves entitats sòcies. "]
["la promoció i reforç de l'economia social i solidària 2020"]
[null,null,null,null,null,"Cal omplir les cel·les en blanc i si escau afegir les files necessàries"]
[null,null,null,null,null,"Abans d'omplir, consultar anotacions a peu de pàgina"]
[null,null,null,null,null," "]
["DADES BÀSIQUES"]
["Nom de la persona jurídica",null,null,null,null,"  "]
["NIF de la persona jurídica"]
["Nom del projecte subvencionable"]
["Import total del projecte subvencionable"]
["Import imputable a la subvenció municipal"]
["% de l’import sol·licitat a la subvenció municipal a bescanviar en REC (Recurs Econòmic Ciutadà) "]
["Import de l'aportació / Cofinançament de l'entitat",{"$f":"B12-B13","v":0}]
["% de l'import sol·licitat respecte el total del projecte subvencionable",{"$f":"B13/B12","v":{"$error":"#DIV/0!"}}]
["Data inici del projecte subvencionat (dd/mm/aaaa)"]
["Data fi del projecte subvencionat (dd/mm/aaaa)"]
[]
["PREVISIÓ DE DESPESES DEL PROJECTE SUBVENCIONABLE"]
[]
["Partides","Import total del projecte","Import imputable a la subvenció municipal","Import de l'aportació / Cofinançament de l'entitat"]
["D1.  - Retribucions i seguretat social (règim general o règim d’autònoms) del personal propi  vinculat/da al projecte",{"$f":"SUM(DespesesProjecte[[#This Row],[Import imputable a la subvenció municipal]],DespesesProjecte[[#This Row],[Import de l''aportació / Cofinançament de l''entitat]])","v":0},{"$f":"SUM(C24:C28)","v":0},{"$f":"SUM(D24:D28)","v":0}]
[]
[]
[]
[]
[]
["TOTAL DE DESPESES DEL PERSONAL (Max 25% de l'import imputable a la subvenció municipal)",{"$f":"B23","v":0},{"$f":"C23","v":0},{"$f":"D23","v":0}]
["D2.  Treballs realitzats per professionals i empreses externes directament vinculades a l’acompanyament de processos de l’entitat i amb les seves associades",{"$f":"SUM(DespesesProjecte[[#This Row],[Import imputable a la subvenció municipal]],DespesesProjecte[[#This Row],[Import de l''aportació / Cofinançament de l''entitat]])","v":0},{"$f":"SUM(C31:C35)","v":0},{"$f":"SUM(D31:D35)","v":0}]
[]
[]
[]
[]
[]
["D3.  Lloguer de bens immobles directament vinculats al projecte subvencionable",{"$f":"SUM(DespesesProjecte[[#This Row],[Import imputable a la subvenció municipal]],DespesesProjecte[[#This Row],[Import de l''aportació / Cofinançament de l''entitat]])","v":0},{"$f":"SUM(C37:C41)","v":0},{"$f":"SUM(D37:D41)","v":0}]
[]
[]
[]
[]
[]
["D4.  Adquisició de materials i béns consumibles íntegrament imputables al projecte subvencionable",{"$f":"SUM(DespesesProjecte[[#This Row],[Import imputable a la subvenció municipal]],DespesesProjecte[[#This Row],[Import de l''aportació / Cofinançament de l''entitat]])","v":0},{"$f":"SUM(C43:C47)","v":0},{"$f":"SUM(D43:D47)","v":0}]
[]
[]
[]
[]
[]
["D5.  Publicitat i propaganda de les activitats directament vinculades al projecte subvencionable",{"$f":"SUM(DespesesProjecte[[#This Row],[Import imputable a la subvenció municipal]],DespesesProjecte[[#This Row],[Import de l''aportació / Cofinançament de l''entitat]])","v":0},{"$f":"SUM(C49:C53)","v":0},{"$f":"SUM(D49:D53)","v":0}]
[]
[]
[]
[]
[]
["D6.  Viatges i desplaçaments imputables a les activitats del projecte subvencionable",{"$f":"SUM(DespesesProjecte[[#This Row],[Import imputable a la subvenció municipal]],DespesesProjecte[[#This Row],[Import de l''aportació / Cofinançament de l''entitat]])","v":0},{"$f":"SUM(C55:C59)","v":0},{"$f":"SUM(D55:D59)","v":0}]
[]
[]
[]
[]
[]
["D7.  Despeses de l’informe d’auditoria",{"$f":"SUM(DespesesProjecte[[#This Row],[Import imputable a la subvenció municipal]],DespesesProjecte[[#This Row],[Import de l''aportació / Cofinançament de l''entitat]])","v":0},{"$f":"SUM(C61:C65)","v":0},{"$f":"SUM(D61:D65)","v":0}]
[]
[]
[]
[]
[]
["D8.  Altres despeses que de manera justificada puguin imputar-se directament al projecte subvencionable",{"$f":"SUM(DespesesProjecte[[#This Row],[Import imputable a la subvenció municipal]],DespesesProjecte[[#This Row],[Import de l''aportació / Cofinançament de l''entitat]])","v":0},{"$f":"SUM(C67:C71)","v":0},{"$f":"SUM(D67:D71)","v":0}]
[]
[]
[]
[]
[]
["TOTAL D'ALTRES DESPESES DIRECTES ",{"$f":"SUM(B30,B36,B42,B48,B54,B60,B66)","v":0},{"$f":"SUM(C30,C36,C42,C48,C54,C60,C66)","v":0},{"$f":"SUM(D30,D36,D42,D48,D54,D60,D66)","v":0}]
["TOTAL DESPESES DIRECTES (aquelles que s’identifiquen directament amb el projecte subvencionable)",{"$f":"SUM(B29,B72)","v":0},{"$f":"SUM(C29,C72)","v":0},{"$f":"SUM(D29,D72)","v":0}]
["I1. Personal de suport al projecte (nòmines i seguretat social)",{"$f":"SUM(DespesesProjecte[[#This Row],[Import imputable a la subvenció municipal]],DespesesProjecte[[#This Row],[Import de l''aportació / Cofinançament de l''entitat]])","v":0},{"$f":"SUM(C75:C79)","v":0},{"$f":"SUM(D75:D79)","v":0}]
[]
[]
[]
[]
[]
["I2.  Assegurances",{"$f":"SUM(DespesesProjecte[[#This Row],[Import imputable a la subvenció municipal]],DespesesProjecte[[#This Row],[Import de l''aportació / Cofinançament de l''entitat]])","v":0},{"$f":"SUM(C81:C85)","v":0},{"$f":"SUM(D81:D85)","v":0}]
[]
[]
[]
[]
[]
["I3.  Amortització",{"$f":"SUM(DespesesProjecte[[#This Row],[Import imputable a la subvenció municipal]],DespesesProjecte[[#This Row],[Import de l''aportació / Cofinançament de l''entitat]])","v":0},{"$f":"SUM(C87:C91)","v":0},{"$f":"SUM(D87:D91)","v":0}]
[]
[]
[]
[]
[]
["I4.  Lloguer de béns immobles.",{"$f":"SUM(DespesesProjecte[[#This Row],[Import imputable a la subvenció municipal]],DespesesProjecte[[#This Row],[Import de l''aportació / Cofinançament de l''entitat]])","v":0},{"$f":"SUM(C93:C97)","v":0},{"$f":"SUM(D93:D97)","v":0}]
[]
[]
[]
[]
[]
["I5.  Adquisició de materials i béns consumibles parcialment imputables al projecte subvencionable",{"$f":"SUM(DespesesProjecte[[#This Row],[Import imputable a la subvenció municipal]],DespesesProjecte[[#This Row],[Import de l''aportació / Cofinançament de l''entitat]])","v":0},{"$f":"SUM(C99:C103)","v":0},{"$f":"SUM(D99:D103)","v":0}]
[]
[]
[]
[]
[]
["I6.  Manteniment d’edificis i/o instal·lacions.",{"$f":"SUM(DespesesProjecte[[#This Row],[Import imputable a la subvenció municipal]],DespesesProjecte[[#This Row],[Import de l''aportació / Cofinançament de l''entitat]])","v":0},{"$f":"SUM(C105:C109)","v":0},{"$f":"SUM(D105:D109)","v":0}]
[]
[]
[]
[]
[]
["I7.  Comunicacions (telèfon, correus, connexió a internet)",{"$f":"SUM(DespesesProjecte[[#This Row],[Import imputable a la subvenció municipal]],DespesesProjecte[[#This Row],[Import de l''aportació / Cofinançament de l''entitat]])","v":0},{"$f":"SUM(C111:C115)","v":0},{"$f":"SUM(D111:D115)","v":0}]
[]
[]
[]
[]
[]
["I8.  Despeses financeres",{"$f":"SUM(DespesesProjecte[[#This Row],[Import imputable a la subvenció municipal]],DespesesProjecte[[#This Row],[Import de l''aportació / Cofinançament de l''entitat]])","v":0},{"$f":"SUM(C117:C121)","v":0},{"$f":"SUM(D117:D121)","v":0}]
[]
[]
[]
[]
[]
["I9.  Subministraments ",{"$f":"SUM(DespesesProjecte[[#This Row],[Import imputable a la subvenció municipal]],DespesesProjecte[[#This Row],[Import de l''aportació / Cofinançament de l''entitat]])","v":0},{"$f":"SUM(C123:C127)","v":0},{"$f":"SUM(D123:D127)","v":0}]
[]
[]
[]
[]
[]
["I10.  Treball realitzat per altres empreses, parcialment imputables al projecte subvencionable (neteja, seguretat...)",{"$f":"SUM(DespesesProjecte[[#This Row],[Import imputable a la subvenció municipal]],DespesesProjecte[[#This Row],[Import de l''aportació / Cofinançament de l''entitat]])","v":0},{"$f":"SUM(C129:C133)","v":0},{"$f":"SUM(D129:D133)","v":0}]
[]
[]
[]
[]
[]
["TOTAL DESPESES INDIRECTES (es podran assignar al projecte subvencionable fent sevir un percentatge d’assignació) - Màxim 10% de l’import imputable a la subvenció municipal",{"$f":"SUM(B74,B80,B86,B92,B98,B104,B110,B116,B122,B128)","v":0},{"$f":"SUM(C74,C80,C86,C92,C98,C104,C110,C116,C122,C128)","v":0},{"$f":"SUM(D74,D80,D86,D92,D98,D104,D110,D116,D122,D128)","v":0}]
["TOTAL DE DESPESES PREVISTES",{"$f":"SUM(B134,B73)","v":0},{"$f":"SUM(C134,C73)","v":0},{"$f":"SUM(D134,D73)","v":0}]
[]
["Barcelona, "]
[]
["Segell de l'entitat ",null,"Signatura del President/a o persona que disposa de poders o autorització per fer-ho."]
[]
[]
["1.  La cuantía de la subvención otorgada no superará el 80% del gasto total del proyecto a subvencionar. "]
["2.  El importe máximo de subvención para la modalidad \"a\" del ámbito temático de Intercooperación (Ba) es de 35.000 €."]
["3.  En caso que la solicitud presentada sobrepase el importe máximo, se considerará como importe solicitado el máximo de lo establecido en la convocatoria. "]
["4.  Se limita a un  máximo del 25%  el importe de la subvención para gastos de personal propio que participa de forma directa y debidamente en el proyecto."]
["5.  Los gastos indirectos imputados al proyecto detallados, no podran superar el 10% del importe de la subvención. "]
["6.  El carácter subvencionable del gasto de amortización estará sujeto a las condiciones siguientes:"]
["- Que las subvenciones no hayan contribuidio a la compra de bienes."]
["- Que la amortitzación se calcula de conformidad con las normas de compatibilidad generalmente aceptadas. "]
["- Que el coste se refiera al periodo subvencionable."]
["7.  Cuando algún gasto sea superior a 12.000€ sin IVA, en el caso de prestaciones de servicios o libramiento de bienes, y para aquellos gastos de más de 30.000 €, sin IVA,"]
["      en el caso de ejecución de obras, tendrán que incorporar tres presupuestos solicitados, y argumentar el motivo de la adjudicación, en el caso de no ser la propuesta más ventajosa económicamente."]
["8. En ningún caso se considerarán gastos subvencionables:"]
["- Los impuestos indirectos cuando sean susceptibles de recuperación o compensación, ni los impuestos sobre la renta. "]
["- Los gastos de inversión, incluidas las adquisiciones de bienes muebles. "]
["- Los gastos realizados con fecha anterior al inicio del proyecto y fecha posterior a la fecha de finalización del proyecto. "]
["- Otros gastos Que se indiquen en la convocatoria."]
["9. Para las subvenciones otorgadas por importe igual o superior a 20.000 € es necessario un informe de auditoría para la justificación. "]
["10. El importe de este informe se considera un gasto subvencionable, con un límite máximo de 1.500 €."]